fUST/lending_fUST_20251212
["ID","MTS","AMOUNT","RATE_DAILY","PERIOD"]
[398356934,1765551584685,-500.0,0.00041643,120]
[398356935,1765551584735,-500.0,0.00041643,120]
[398356936,1765551584784,-1679.33,0.00041643,120]
[398356937,1765551584833,-500.0,0.00041643,120]
[398356938,1765551584883,-500.0,0.00041643,120]
[398356939,1765551584932,-1996.1,0.00041643,120]
[398356940,1765551584980,-2110.54,0.00041643,120]
[398356941,1765551585027,-500.0,0.00041643,120]
[398356942,1765551585074,-500.0,0.00041643,120]
[398356943,1765551585125,-500.0,0.00041643,120]
[398356944,1765551585177,-9001.55,0.00041643,120]
[398356945,1765551585229,-500.0,0.00041643,120]
[398356946,1765551585282,-1010.87,0.00041643,120]
[398356947,1765551585352,-2303.62,0.00041643,120]
[398356948,1765551585405,-2906.18,0.00041643,120]
[398356949,1765551585457,-500.0,0.00041643,120]
[398356950,1765551585508,-22718.21,0.00041643,120]
[398356951,1765551585558,-1592.05,0.00041643,120]
[398356952,1765551585608,-999.97,0.00041643,120]
[398356953,1765551585657,-1833.54,0.00041643,120]
[398356954,1765551585706,-500.0,0.00041643,120]
[398356955,1765551585755,-27650.2,0.00041643,120]
[398356956,1765551585803,-594.7,0.00041643,120]
[398356957,1765551585850,-500.0,0.00041643,120]
[398356958,1765551585905,-500.0,0.00041643,120]
[398356959,1765551585955,-2595.28,0.00041643,120]
[398356960,1765551586004,-633.92,0.00041643,120]
[398356961,1765551586052,-604.71,0.00041643,120]
[398356962,1765551586102,-996.1,0.00041643,120]
[398356963,1765551586152,-719.66,0.00041643,120]
[398356964,1765551586201,-768.67,0.00041643,30]
[398356965,1765551586250,-537.19,0.00041643,120]
[398356966,1765551586300,-2790.78,0.00041643,120]
[398356967,1765551586351,-5160.6,0.00041643,120]
[398356968,1765551586401,-500.0,0.00041643,120]
[398356969,1765551586452,-654.67,0.00041643,120]
[398356970,1765551586502,-536.21,0.00041643,120]
[398356971,1765551586553,-1472.63,0.00041643,120]
[398356972,1765551586606,-753.89,0.00041643,120]
[398356973,1765551586658,-1063.01,0.00041643,120]
[398356974,1765551586707,-992.13,0.00041643,120]
[398356975,1765551586758,-1270.95,0.00041643,120]
[398356976,1765551586804,-885.72,0.00041643,120]
[398356977,1765551586872,-1062.43,0.00041643,120]
[398356978,1765551586924,-500.0,0.00041643,120]
[398356979,1765551586977,-470.6396422,0.00041643,120]
[398356980,1765551587138,-1650.53,0.00041643,120]
[398356981,1765551587187,-500.0,0.00041643,120]
[398356982,1765551587235,-500.0,0.00041643,120]
[398356983,1765551587285,-3845.54,0.00041643,120]
[398356984,1765551587341,-541.01,0.00041643,120]
[398356985,1765551587399,-1922.65,0.00041643,120]
[398356986,1765551587457,-2038.3,0.00041643,120]
[398356987,1765551587505,-500.0,0.00041643,120]
[398356988,1765551587555,-2413.47,0.00041643,120]
[398356989,1765551587605,-500.0,0.00041643,120]
[398356990,1765551587655,-766.61,0.00041643,120]
[398356991,1765551587710,-2900.12,0.00041643,120]
[398356992,1765551587763,-1672.8,0.00041643,120]
[398356993,1765551587812,-784.74,0.00041643,120]
[398356994,1765551587860,-500.0,0.00041643,120]
[398356995,1765551587908,-500.0,0.00041643,120]
[398356996,1765551587955,-4558.32,0.00041643,120]
[398356997,1765551588003,-1098.06,0.00041643,120]
[398356998,1765551588050,-658.88,0.00041643,120]
[398356999,1765551588097,-6758.05,0.00041643,120]
[398357000,1765551588146,-500.84442538,0.00041643,30]
[398357001,1765551588193,-500.0,0.00041643,120]
[398357002,1765551588242,-1461.11,0.00041643,120]
[398357003,1765551588290,-500.0,0.00041643,120]
[398357004,1765551588337,-1192.44,0.00041643,120]
[398357005,1765551588385,-500.0,0.00041643,120]
[398357006,1765551588432,-4560.77,0.00041643,120]
[398357007,1765551588482,-500.0,0.00041643,120]
[398357008,1765551588526,-500.0,0.00041643,120]
[398357009,1765551588573,-7371.62,0.00041643,120]
[398357010,1765551588616,-500.0,0.00041643,120]
[398357011,1765551588660,-660.64,0.00041643,120]
[398357012,1765551588703,-1412.34,0.00041643,120]
[398357013,1765551588745,-617.1,0.00041643,120]
[398357014,1765551588789,-500.0,0.00041643,120]
[398357015,1765551588834,-500.0,0.00041643,120]
[398357016,1765551588878,-500.0,0.00041643,120]
[398357017,1765551588924,-500.0,0.00041643,120]
[398357018,1765551588969,-2376.95,0.00041643,120]
[398357019,1765551589017,-500.0,0.00041643,120]
[398357020,1765551589063,-532.46,0.00041643,120]
[398357021,1765551589110,-771.36,0.00041643,120]
[398357022,1765551589161,-500.0,0.00041643,120]
[398357023,1765551589212,-2107.15,0.00041643,30]
[398357024,1765551589263,-1999.0,0.00041643,120]
[398357025,1765551589312,-804.28,0.00041643,120]
[398357026,1765551589363,-1559.94,0.00041643,120]
[398357027,1765551589412,-791.49,0.00041643,120]
[398357028,1765551589460,-1920.43,0.00041643,120]
[398357029,1765551589509,-1848.03,0.00041643,120]
[398357030,1765551589556,-500.0,0.00041643,120]
[398357031,1765551589602,-1315.71,0.00041643,120]
[398357032,1765551589649,-571.16,0.00041643,120]
[398357033,1765551589694,-760.32,0.00041643,120]
[398357034,1765551589739,-500.0,0.00041643,120]
[398357035,1765551589783,-5221.94,0.00041643,120]
[398357036,1765551589826,-500.0,0.00041643,120]
[398357037,1765551589868,-500.0,0.00041643,120]
[398357038,1765551589912,-500.0,0.00041643,120]
[398357039,1765551589955,-6806.92,0.00041643,120]
[398357040,1765551589998,-822.46,0.00041643,120]
[398357041,1765551590040,-500.0,0.00041643,120]
[398357042,1765551590084,-500.0,0.00041643,120]
[398357043,1765551590127,-500.0,0.00041643,120]
[398357044,1765551590174,-2232.790113,0.00041643,120]
[398357045,1765551590221,-1301.35,0.00041643,120]
[398357046,1765551590267,-500.0,0.00041643,120]
[398357047,1765551590310,-500.0,0.00041643,120]
[398357048,1765551590358,-2816.98,0.00041643,120]
[398357049,1765551590402,-500.0,0.00041643,120]
[398357050,1765551590447,-807.71,0.00041643,120]
[398357051,1765551590493,-500.0,0.00041643,120]
[398357052,1765551590535,-1165.13,0.00041643,30]
[398357053,1765551590577,-500.0,0.00041643,120]
[398357054,1765551590620,-559.07,0.00041643,120]
[398357055,1765551590665,-500.0,0.00041643,120]
[398357056,1765551590709,-500.66,0.00041643,120]
[398357057,1765551590753,-1357.98,0.00041643,120]
[398357058,1765551590795,-500.0,0.00041643,120]
[398357059,1765551590841,-500.0,0.00041643,120]
[398357060,1765551590883,-830.63,0.00041643,120]
[398357061,1765551590928,-500.0,0.00041643,120]
[398357062,1765551590976,-500.0,0.00041643,120]
[398357063,1765551591021,-500.0,0.00041643,120]
[398357064,1765551591066,-4984.88,0.00041643,120]
[398357065,1765551591110,-1656.13,0.00041643,120]
[398357066,1765551591160,-1033.11,0.00041643,120]
[398357067,1765551591214,-500.0,0.00041643,120]
[398357068,1765551591268,-500.0,0.00041643,120]
[398357069,1765551591320,-697.36,0.00041643,120]
[398357070,1765551591368,-677.54,0.00041643,120]
[398357071,1765551591416,-500.0,0.00041643,120]
[398357072,1765551591464,-3932.31,0.00041643,120]
[398357073,1765551591514,-991.44,0.00041643,120]
[398357074,1765551591562,-1507.22,0.00041643,120]
[398357075,1765551591745,-500.0,0.00041643,120]
[398357076,1765551591792,-500.0,0.00041643,120]
[398357077,1765551591839,-2032.65,0.00041643,120]
[398357078,1765551591888,-500.0,0.00041643,120]
[398357079,1765551591939,-3703.69,0.00041643,120]
[398357080,1765551591989,-1830.44,0.00041643,120]
[398357081,1765551592037,-500.0,0.00041643,120]
[398357082,1765551592084,-986.77,0.00041643,120]
[398357083,1765551592131,-500.0,0.00041643,120]
[398357084,1765551592182,-3704.65,0.00041643,120]
[398357085,1765551592231,-500.0,0.00041643,120]
[398357086,1765551592280,-500.0,0.00041643,120]
[398357087,1765551592327,-7458.75,0.00041643,120]
[398357088,1765551592374,-1053.64,0.00041643,120]
[398357089,1765551592420,-1240.96,0.00041643,120]
[398357090,1765551592468,-601.86,0.00041643,120]
[398357091,1765551592513,-536.01966911,0.00041643,120]
[398357092,1765551592554,-857.66,0.00041643,120]
[398357093,1765551592597,-509.78,0.00041643,120]
[398357094,1765551592642,-528.05,0.00041643,120]
[398357095,1765551592686,-476.724665,0.00041643,120]
[398357096,1765551592731,-500.0,0.00041643,120]
[398357097,1765551592774,-1644.47,0.00041643,120]
[398357098,1765551592818,-4461.41,0.00041643,120]
[398357099,1765551592867,-500.0,0.00041643,120]
[398357100,1765551592916,-596.0,0.00041885,90]
[398357101,1765551592976,-577.85,0.00041917,120]
[398357102,1765551593031,-500.0,0.00041917,120]
[398357103,1765551593082,-500.0,0.00041917,120]
[398357104,1765551593135,-500.0,0.00041917,120]
[398357105,1765551593187,-500.0,0.00041917,120]
[398357106,1765551593237,-500.0,0.00041917,120]
[398357107,1765551593289,-500.0,0.00041917,120]
[398357108,1765551593340,-500.0,0.00041917,120]
[398357109,1765551593393,-500.0,0.00041917,120]
[398357110,1765551593446,-500.0,0.00041917,120]
[398357111,1765551593498,-500.0,0.00041917,120]
[398357112,1765551593553,-500.0,0.00041917,120]
[398357113,1765551593605,-500.0,0.00041917,120]
[398357114,1765551593656,-500.0,0.00041917,120]
[398357115,1765551593708,-500.0,0.00041917,120]
[398357116,1765551593760,-1023.24,0.00041917,120]
[398357117,1765551593813,-500.0,0.00041917,120]
[398357118,1765551593866,-500.0,0.00041917,120]
[398357119,1765551593921,-500.0,0.00041917,120]
[398357120,1765551593974,-739.99,0.00041917,120]
[398357121,1765551594028,-653.44,0.00041917,120]
[398357122,1765551594080,-1602.86,0.00041917,120]
[398357123,1765551594133,-500.0,0.00041917,120]
[398357124,1765551594186,-406.40269464,0.00041917,120]
[398357125,1765551594239,-345.70765171,0.00041917,120]
[398357126,1765551594291,-500.0,0.00041917,120]
[398357127,1765551594344,-500.0,0.00041917,30]
[398357128,1765551594397,-500.0,0.00041917,120]
[398357129,1765551594449,-500.0,0.00041917,120]
[398357130,1765551594499,-1083.15,0.00041917,120]
[398357131,1765551594548,-915.35,0.00041917,120]
[398357132,1765551594600,-500.0,0.00041917,120]
[398357133,1765551594649,-159.24902913,0.00041917,120]
[398357134,1765551594697,-500.0,0.00041917,120]
[398357135,1765551594747,-500.0,0.00041917,120]
[398357136,1765551594792,-500.0,0.00041917,120]
[398357137,1765551594839,-527.93,0.00041917,120]
[398357138,1765551594885,-500.0,0.00041917,120]
[398357139,1765551594929,-500.0,0.00041917,120]
[398357140,1765551594973,-661.64,0.00041917,120]
[398357141,1765551595019,-500.0,0.00041917,120]
[398357142,1765551595068,-1294.61,0.00041917,120]
[398357143,1765551595114,-919.59,0.00041917,120]
[398357144,1765551595161,-500.0,0.00041917,120]
[398357145,1765551595207,-500.0,0.00041917,120]
[398357146,1765551595253,-500.0,0.00041917,120]
[398357147,1765551595300,-1577.88,0.00041917,120]
[398357148,1765551595348,-524.74,0.00041917,120]
[398357149,1765551595397,-831.55,0.00041917,120]
[398357150,1765551595448,-1017.69,0.00041917,120]
[398357151,1765551595494,-548.68,0.00041917,120]
[398357152,1765551595541,-740.84,0.00041917,120]
[398357153,1765551595585,-2056.85456689,0.00041917,60]
[398357154,1765551595628,-500.0,0.00041917,120]
[398357155,1765551595674,-500.0,0.00041917,120]
[398357156,1765551595718,-500.0,0.00041917,120]
[398357157,1765551595761,-500.0,0.00041917,120]
[398357158,1765551595805,-551.69,0.00041917,120]
[398357159,1765551595848,-500.0,0.00041917,120]
[398357160,1765551596178,-500.0,0.00041917,120]
[398357161,1765551596229,-500.0,0.00041917,120]
[398357162,1765551596277,-1148.95,0.00041917,120]
[398357163,1765551596330,-500.0,0.00041917,120]
[398357164,1765551596380,-518.77,0.00041917,120]
[398357165,1765551596430,-500.0,0.00041917,120]
[398357166,1765551596481,-500.0,0.00041917,120]
[398357167,1765551596532,-500.0,0.00041917,120]
[398357168,1765551596581,-500.0,0.00041917,120]
[398357169,1765551596632,-447.54911927,0.00041917,120]
[398357170,1765551596682,-500.0,0.00041917,120]
[398357171,1765551596735,-500.0,0.00041917,120]
[398357172,1765551596784,-356.0863505,0.00041917,120]
[398357173,1765551596830,-500.0,0.00041917,120]
[398357174,1765551596881,-751.84,0.00041917,120]
[398357175,1765551596930,-500.0,0.00041917,120]
[398357176,1765551596978,-500.0,0.00041917,120]
[398357177,1765551597025,-500.0,0.00041917,120]
[398357178,1765551597072,-500.0,0.00041917,120]
[398357179,1765551597120,-500.0,0.00041917,120]
[398357180,1765551597168,-692.4,0.00041917,120]
[398357181,1765551597216,-500.0,0.00041917,120]
[398357182,1765551597268,-626.39467934,0.00041917,120]
[398357183,1765551597316,-500.0,0.00041917,120]
[398357184,1765551597366,-500.0,0.00041917,120]
[398357185,1765551597416,-913.5,0.00041917,120]
[398357186,1765551597465,-500.0,0.00041917,120]
[398357187,1765551597513,-500.0,0.00041917,120]
[398357188,1765551597560,-500.96297202,0.00041917,120]
[398357189,1765551597610,-1021.23,0.00041917,120]
[398357190,1765551597660,-500.0,0.00041917,120]
[398357191,1765551597708,-500.0,0.00041917,120]
[398357192,1765551597759,-500.0,0.00041917,120]
[398357193,1765551597805,-695.87,0.00041917,120]
[398357194,1765551597849,-1804.72,0.00041917,120]
[398357195,1765551597898,-500.0,0.00041917,120]
[398357196,1765551597953,-942.83,0.00041917,120]
[398357197,1765551597999,-500.0,0.00041917,120]
[398357198,1765551598045,-500.0,0.00041917,120]
[398357199,1765551598091,-713.52,0.00041917,120]
[398357200,1765551598135,-517.36,0.00041917,120]
[398357201,1765551598179,-500.0,0.00041917,120]
[398357202,1765551598225,-500.0,0.00041917,120]
[398357203,1765551598272,-1064.91,0.00041917,120]
[398357204,1765551598318,-500.0,0.00041917,120]
[398357205,1765551598368,-500.0,0.00041917,120]
[398357206,1765551598416,-500.0,0.00041917,120]
[398357207,1765551598463,-500.0,0.00041917,120]
[398357208,1765551598512,-500.0,0.00041917,120]
[398357209,1765551598561,-888.56,0.00041917,120]
[398357210,1765551598609,-500.0,0.00041917,120]
[398357211,1765551598655,-500.0,0.00041917,120]
[398357212,1765551598701,-500.0,0.00041917,120]
[398357213,1765551598745,-1772.02,0.00041917,120]
[398357214,1765551598790,-500.0,0.00041917,120]
[398357215,1765551598832,-1170.54,0.00041917,120]
[398357216,1765551598878,-1155.19,0.00041917,120]
[398357217,1765551598924,-527.78,0.00041917,120]
[398357218,1765551598971,-500.0,0.00041917,120]
[398357219,1765551599017,-835.63,0.00041917,120]
[398357220,1765551599064,-504.46,0.00041917,120]
[398357221,1765551599111,-500.0,0.00041917,120]
[398357222,1765551599159,-500.0,0.00041917,120]
[398357223,1765551599207,-500.0,0.00041917,120]
[398357224,1765551599255,-259.23108994,0.00041917,120]
[398357225,1765551599303,-500.0,0.00041917,120]
[398357226,1765551599404,-500.0,0.00041917,60]
[398357227,1765551599453,-500.0,0.00041917,120]
[398357228,1765551599500,-500.0,0.00041917,120]
[398357229,1765551599550,-947.43,0.00041917,120]
[398357230,1765551599598,-505.1108926,0.00041917,120]
[398357231,1765551599646,-2498.81,0.00041917,120]
[398357232,1765551599695,-1513.84,0.00041917,120]
[398357233,1765551599742,-500.0,0.00041917,120]
[398357234,1765551599786,-1972.67,0.00041917,120]
[398357235,1765551599832,-500.0,0.00041917,120]
[398357236,1765551599879,-500.0,0.00041917,120]
[398357237,1765551599927,-500.0,0.00041917,120]
[398357238,1765551599976,-500.0,0.00041917,120]
[398357239,1765551600026,-555.39,0.00041917,120]
[398357240,1765551600083,-650.15,0.00041917,120]
[398357241,1765551600144,-500.0,0.00041917,120]
[398357242,1765551600203,-500.0,0.00041917,120]
[398357243,1765551600263,-546.48,0.00041917,120]
[398357244,1765551600326,-500.0,0.00041917,120]
[398357245,1765551600399,-500.0,0.00041917,120]
[398357246,1765551600467,-500.0,0.00041917,120]
[398357247,1765551600528,-500.0,0.00041917,120]
[398357248,1765551600580,-500.0,0.00041917,120]
[398357249,1765551600631,-500.0,0.00041917,120]
[398357250,1765551600682,-500.0,0.00041917,90]
[398357251,1765551600732,-955.21,0.00041917,120]
[398357252,1765551600781,-500.0,0.00041917,120]
[398357253,1765551600834,-500.0,0.00041917,120]
[398357254,1765551600883,-608.9,0.00041917,120]
[398357255,1765551600931,-583.48,0.00041917,120]
[398357256,1765551600985,-500.0,0.00041917,120]
[398357257,1765551601035,-500.0,0.00041917,120]
[398357258,1765551601084,-500.0,0.00041917,120]
[398357259,1765551601135,-646.24,0.00041917,120]
[398357260,1765551601187,-550.65,0.00041917,120]
[398357261,1765551601237,-1006.28,0.00041917,120]
[398357262,1765551601293,-817.12,0.00041917,120]
[398357263,1765551601345,-686.53,0.00041917,120]
[398357264,1765551601402,-500.0,0.00041917,120]
[398357265,1765551601458,-561.43,0.00041917,120]
[398357266,1765551601512,-500.0,0.00041917,120]
[398357267,1765551601568,-1349.21,0.00041917,120]
[398357268,1765551601620,-500.0,0.00041917,120]
[398357269,1765551601674,-1514.23,0.00041917,120]
[398357270,1765551601730,-608.7,0.00041917,120]
[398357271,1765551601781,-538.16931268,0.00041917,120]
[398357272,1765551601834,-518.44,0.00041917,120]
[398357273,1765551601884,-994.05,0.00041917,120]
[398357274,1765551601936,-2454.51,0.00041917,120]
[398357275,1765551601993,-500.0,0.00041917,120]
[398357276,1765551602046,-500.0,0.00041917,120]
[398357277,1765551602100,-500.0,0.00041917,120]
[398357278,1765551602155,-500.56687799,0.00041917,120]
[398357279,1765551602208,-570.77,0.00041917,120]
[398357280,1765551602262,-500.0,0.00041917,120]
[398357281,1765551602317,-1335.36,0.00041917,120]
[398357282,1765551602374,-539.52,0.00041917,120]
[398357283,1765551602430,-500.0,0.00041917,120]
[398357284,1765551602482,-500.0,0.00041917,120]
[398357285,1765551602533,-500.0,0.00041917,120]
[398357286,1765551602584,-500.0,0.00041917,120]
[398357287,1765551602633,-854.37,0.00041917,120]
[398357288,1765551602682,-500.0,0.00041917,120]
[398357289,1765551602732,-500.0,0.00041917,120]
[398357290,1765551602780,-500.0,0.00041917,120]
[398357291,1765551602829,-2412.18,0.00041917,120]
[398357292,1765551602878,-500.0,0.00041917,120]
[398357293,1765551602926,-500.0,0.00041917,120]
[398357294,1765551602975,-500.0,0.00041917,120]
[398357295,1765551603026,-524.80867783,0.00041917,120]
[398357296,1765551603087,-500.0,0.00041917,120]
[398357297,1765551603165,-500.0,0.00041917,120]
[398357298,1765551603229,-500.0,0.00041917,120]
[398357299,1765551603286,-970.8,0.00041917,120]
[398357300,1765551603340,-480.62306483,0.00041917,120]
[398357301,1765551603394,-190.3131396,0.00041917,120]
[398357302,1765551603448,-500.0,0.00041917,120]
[398357303,1765551603502,-500.0,0.00041917,120]
[398357304,1765551603555,-2056.95,0.00041917,120]
[398357305,1765551603608,-1338.78,0.00041917,30]
[398357306,1765551603660,-500.0,0.00041917,120]
[398357307,1765551603712,-4365.33,0.00041917,120]
[398357308,1765551603763,-593.25,0.00041917,120]
[398357309,1765551603814,-624.89,0.00041917,120]
[398357310,1765551603866,-500.0,0.00041917,120]
[398357311,1765551603920,-500.0,0.00041917,120]
[398357312,1765551603974,-500.0,0.00041917,120]
[398357313,1765551604025,-500.0,0.00041917,120]
[398357314,1765551604081,-493.50172179,0.00041917,120]
[398357315,1765551604135,-674.18,0.00041917,120]
[398357316,1765551604191,-500.0,0.00041917,120]
[398357317,1765551604245,-1621.4,0.00041917,120]
[398357318,1765551604297,-9298.49,0.00041917,120]
[398357319,1765551604358,-2019.34,0.00041917,120]
[398357320,1765551604415,-500.0,0.00041917,120]
[398357321,1765551604468,-500.0,0.00041917,120]
[398357322,1765551604707,-574.39,0.00041917,120]
[398357323,1765551604761,-2090.21,0.00041917,120]
[398357324,1765551604813,-500.0,0.00041917,120]
[398357325,1765551604866,-500.0,0.00041917,60]
[398357326,1765551604921,-500.0,0.00041917,120]
[398357327,1765551604975,-11563.12,0.00041917,120]
[398357328,1765551605026,-500.0,0.00041917,120]
[398357329,1765551605079,-1587.78,0.00041917,120]
[398357330,1765551605137,-500.0,0.00041917,120]
[398357331,1765551605189,-2435.58,0.00041917,120]
[398357332,1765551605242,-500.0,0.00041917,120]
[398357333,1765551605298,-500.0,0.00041917,120]
[398357334,1765551605352,-707.91,0.00041917,120]
[398357335,1765551605409,-690.72,0.00041917,120]
[398357336,1765551605460,-4131.11,0.00041917,120]
[398357337,1765551605512,-745.28,0.00041917,120]
[398357338,1765551605563,-984.45,0.00041917,120]
[398357339,1765551605614,-839.26,0.00041917,120]
[398357340,1765551605665,-730.44,0.00041917,120]
[398357341,1765551605715,-1652.54,0.00041917,120]
[398357342,1765551605767,-500.0,0.00041917,120]
[398357343,1765551605820,-500.0,0.00041917,120]
[398357344,1765551605871,-500.0,0.00041917,120]
[398357345,1765551605922,-1679.33,0.00041917,120]
[398357346,1765551605975,-500.0,0.00041917,120]
[398357347,1765551606024,-500.0,0.00041917,120]
[398357348,1765551606074,-1996.1,0.00041917,120]
[398357349,1765551606125,-2110.54,0.00041917,120]
[398357350,1765551606176,-500.0,0.00041917,120]
[398357351,1765551606226,-500.0,0.00041917,120]
[398357352,1765551606277,-500.0,0.00041917,120]
[398357353,1765551606331,-9001.55,0.00041917,120]
[398357354,1765551606383,-598.11228869,0.00041917,120]
[398357355,1765551606434,-1010.87,0.00041917,120]
[398357356,1765551606489,-2303.62,0.00041917,120]
[398357357,1765551606541,-2906.18,0.00041917,120]
[398357358,1765551606594,-500.0,0.00041917,120]
[398357359,1765551606648,-22718.21,0.00041917,120]
[398357360,1765551606703,-1592.05,0.00041917,120]
[398357361,1765551606756,-999.97,0.00041917,120]
[398357362,1765551606808,-1833.54,0.00041917,120]
[398357363,1765551606862,-500.0,0.00041917,120]
[398357364,1765551606919,-27650.2,0.00041917,120]
[398357365,1765551606975,-594.7,0.00041917,120]
[398357366,1765551607028,-500.0,0.00041917,120]
[398357367,1765551607080,-500.0,0.00041917,120]
[398357368,1765551607130,-2595.28,0.00041917,120]
[398357369,1765551607185,-633.92,0.00041917,120]
[398357370,1765551607238,-604.71,0.00041917,120]
[398357371,1765551607291,-996.1,0.00041917,120]
[398357372,1765551607343,-719.66,0.00041917,120]
[398357373,1765551607397,-768.67,0.00041917,30]
[398357374,1765551607450,-537.19,0.00041917,120]
[398357375,1765551607501,-2790.78,0.00041917,120]
[398357376,1765551607552,-5160.6,0.00041917,120]
[398357377,1765551607603,-500.0,0.00041917,120]
[398357378,1765551607663,-654.67,0.00041917,120]
[398357379,1765551607726,-536.21,0.00041917,120]
[398357380,1765551607777,-1472.63,0.00041917,120]
[398357381,1765551607828,-753.89,0.00041917,120]
[398357382,1765551607892,-1063.01,0.00041917,120]
[398357383,1765551607951,-992.13,0.00041917,120]
[398357384,1765551608004,-1270.95,0.00041917,120]
[398357385,1765551608057,-1062.43,0.00041917,120]
[398357386,1765551608109,-500.0,0.00041917,120]
[398357387,1765551608168,-885.72,0.00041917,120]
[398357388,1765551608222,-1650.53,0.00041917,120]
[398357389,1765551608278,-500.0,0.00041917,120]
[398357390,1765551608335,-500.0,0.00041917,120]
[398357391,1765551608392,-3845.54,0.00041917,120]
[398357392,1765551608451,-541.01,0.00041917,120]
[398357393,1765551608505,-1922.65,0.00041917,120]
[398357394,1765551608558,-2038.3,0.00041917,120]
[398357395,1765551608611,-500.0,0.00041917,120]
[398357396,1765551608665,-2413.47,0.00041917,120]
[398357397,1765551608717,-500.71233485,0.00041917,120]
[398357398,1765551608770,-766.61,0.00041917,120]
[398357399,1765551608824,-2900.12,0.00041917,120]
[398357400,1765551608883,-1672.8,0.00041917,120]
[398357401,1765551608937,-784.74,0.00041917,120]
[398357402,1765551608990,-500.0,0.00041917,120]
[398357403,1765551609045,-500.0,0.00041917,120]
[398357404,1765551609101,-4558.32,0.00041917,120]
[398357405,1765551609156,-1098.06,0.00041917,120]
[398357406,1765551609545,-658.88,0.00041917,120]
[398357407,1765551609605,-6758.05,0.00041917,120]
[398357408,1765551609669,-500.0,0.00041917,120]
[398357409,1765551609727,-1461.11,0.00041917,120]
[398357410,1765551609779,-500.0,0.00041917,120]
[398357411,1765551609832,-1192.44,0.00041917,120]
[398357412,1765551609883,-500.0,0.00041917,120]
[398357413,1765551609936,-4560.77,0.00041917,120]
[398357414,1765551609988,-500.0,0.00041917,120]
[398357415,1765551610039,-500.0,0.00041917,120]
[398357416,1765551610090,-7371.62,0.00041917,120]
[398357417,1765551610140,-500.0,0.00041917,120]
[398357418,1765551610200,-660.64,0.00041917,120]
[398357419,1765551610249,-1412.34,0.00041917,120]
[398357420,1765551610297,-617.1,0.00041917,120]
[398357421,1765551610347,-500.0,0.00041917,120]
[398357422,1765551610397,-500.0,0.00041917,120]
[398357423,1765551610448,-500.0,0.00041917,120]
[398357424,1765551610499,-2376.95,0.00041917,120]
[398357425,1765551610551,-500.0,0.00041917,120]
[398357426,1765551610599,-532.46,0.00041917,120]
[398357427,1765551610651,-771.36,0.00041917,120]
[398357428,1765551610705,-500.0,0.00041917,120]
[398357429,1765551610763,-500.0,0.00041917,120]
[398357430,1765551610826,-2107.15,0.00041917,30]
[398357431,1765551610882,-804.28,0.00041917,120]
[398357432,1765551610934,-1559.94,0.00041917,120]
[398357433,1765551610983,-791.49,0.00041917,120]